[Event "Titled Tuesday Blitz June 27 Early 2023"]
[White "Adireddy Arjun"]
[Black "kuanysh1981"]
[WhiteFideId "25647709"]
[WhiteElo "2325"]
[BlackElo "2506"]
[Result "1-0"]
[Round "9"]
[TimeControl "180+2"]
[Date "2023.06.27"]
[WhiteClock "0:00:03"]
[BlackClock "0:00:06"]
[Board "121"]

1. e4 {[%clk 0:03:00]}  e5 {[%clk 0:03:00]} 2. Nf3 {[%clk 0:03:00]}  d6 {[%clk 0:03:00]} 3. d4 {[%clk 0:03:00]}  exd4 {[%clk 0:03:01]} 4. Nxd4 {[%clk 0:03:00]}  Nf6 {[%clk 0:03:00]} 5. Nc3 {[%clk 0:03:01]}  Be7 {[%clk 0:03:00]} 6. Be2 {[%clk 0:02:56]}  O-O {[%clk 0:03:00]} 7. O-O {[%clk 0:02:56]}  a6 {[%clk 0:03:00]} 8. a4 {[%clk 0:02:53]}  Re8 {[%clk 0:02:56]} 9. Re1 {[%clk 0:02:53]}  Nbd7 {[%clk 0:02:54]} 10. Bf4 {[%clk 0:02:49]}  Nf8 {[%clk 0:02:52]} 11. Bg3 {[%clk 0:02:43]}  Ng6 {[%clk 0:02:47]} 12. Bc4 {[%clk 0:02:41]}  Ne5 {[%clk 0:02:44]} 13. Ba2 {[%clk 0:02:38]}  c6 {[%clk 0:02:43]} 14. f4 {[%clk 0:02:35]}  Ng6 {[%clk 0:02:42]} 15. e5 {[%clk 0:02:35]}  dxe5 {[%clk 0:02:35]} 16. fxe5 {[%clk 0:02:35]}  Nd5 {[%clk 0:02:30]} 17. Nxd5 {[%clk 0:02:29]}  cxd5 {[%clk 0:02:31]} 18. c3 {[%clk 0:02:28]}  Be6 {[%clk 0:02:27]} 19. Kh1 {[%clk 0:02:23]}  Bc5 {[%clk 0:02:26]} 20. Qd3 {[%clk 0:02:13]}  Qg5 {[%clk 0:02:22]} 21. Nf3 {[%clk 0:02:11]}  Qg4 {[%clk 0:02:16]} 22. Bxd5 {[%clk 0:02:00]}  Rad8 {[%clk 0:02:06]} 23. c4 {[%clk 0:02:00]}  h5 {[%clk 0:01:52]} 24. Bxe6 {[%clk 0:01:40]}  Qxe6 {[%clk 0:01:49]} 25. Qe4 {[%clk 0:01:38]}  f5 {[%clk 0:01:42]} 26. Qxb7 {[%clk 0:01:30]}  f4 {[%clk 0:01:41]} 27. Bh4 {[%clk 0:01:09]}  Nxh4 {[%clk 0:01:41]} 28. Nxh4 {[%clk 0:01:10]}  Bf2 {[%clk 0:01:41]} 29. Nf3 {[%clk 0:01:05]}  Bxe1 {[%clk 0:01:40]} 30. Rxe1 {[%clk 0:01:06]}  Qxc4 {[%clk 0:01:39]} 31. h3 {[%clk 0:00:33]}  Rb8 {[%clk 0:01:17]} 32. Qe4 {[%clk 0:00:32]}  Qxe4 {[%clk 0:01:16]} 33. Rxe4 {[%clk 0:00:33]}  Rxb2 {[%clk 0:01:14]} 34. Rxf4 {[%clk 0:00:34]}  a5 {[%clk 0:01:14]} 35. Rf5 {[%clk 0:00:24]}  Rb4 {[%clk 0:00:55]} 36. Rxh5 {[%clk 0:00:17]}  Rxa4 {[%clk 0:00:55]} 37. Kh2 {[%clk 0:00:14]}  Ra2 {[%clk 0:00:54]} 38. Rh4 {[%clk 0:00:12]}  a4 {[%clk 0:00:51]} 39. Re4 {[%clk 0:00:09]}  a3 {[%clk 0:00:48]} 40. Ra4 {[%clk 0:00:09]}  Kf7 {[%clk 0:00:47]} 41. Ra6 {[%clk 0:00:07]}  Ra1 {[%clk 0:00:38]} 42. Ng5+ {[%clk 0:00:05]}  Kg8 {[%clk 0:00:36]} 43. e6 {[%clk 0:00:06]}  a2 {[%clk 0:00:35]} 44. Ra7 {[%clk 0:00:06]}  Kh8 {[%clk 0:00:31]} 45. Kg3 {[%clk 0:00:02]}  Rb8 {[%clk 0:00:24]} 46. Kh4 {[%clk 0:00:02]}  Kg8 {[%clk 0:00:18]} 47. e7 {[%clk 0:00:02]}  Re8 {[%clk 0:00:17]} 48. g4 {[%clk 0:00:02]}  Re1 {[%clk 0:00:13]} 49. Rxa2 {[%clk 0:00:02]}  R1xe7 {[%clk 0:00:14]} 50. Rf2 {[%clk 0:00:03]}  Rf8 {[%clk 0:00:13]} 51. Rb2 {[%clk 0:00:02]}  Rf6 {[%clk 0:00:12]} 52. Kg3 {[%clk 0:00:02]}  Re3+ {[%clk 0:00:12]} 53. Kg2 {[%clk 0:00:02]}  Rf8 {[%clk 0:00:12]} 54. Rb7 {[%clk 0:00:01]}  Rfe8 {[%clk 0:00:12]} 55. Rb6 {[%clk 0:00:01]}  Re2+ {[%clk 0:00:12]} 56. Kg3 {[%clk 0:00:01]}  R8e3+ {[%clk 0:00:12]} 57. Kh4 {[%clk 0:00:02]}  Re8 {[%clk 0:00:11]} 58. Rb7 {[%clk 0:00:02]}  R2e7 {[%clk 0:00:11]} 59. Rb6 {[%clk 0:00:02]}  Kf8 {[%clk 0:00:11]} 60. Rg6 {[%clk 0:00:02]}  Re5 {[%clk 0:00:08]} 61. Rd6 {[%clk 0:00:02]}  Ke7 {[%clk 0:00:08]} 62. Rg6 {[%clk 0:00:03]}  Kf8 {[%clk 0:00:08]} 63. Nh7+ {[%clk 0:00:02]}  Kf7 {[%clk 0:00:08]} 64. Ra6 {[%clk 0:00:03]}  R5e7 {[%clk 0:00:04]} 65. Ng5+ {[%clk 0:00:03]}  Kg8 {[%clk 0:00:05]} 66. Kh5 {[%clk 0:00:03]}  Re5 {[%clk 0:00:04]} 67. h4 {[%clk 0:00:04]}  Rf8 {[%clk 0:00:04]} 68. Ra7 {[%clk 0:00:03]}  Rf6 {[%clk 0:00:04]} 69. Ra8+ {[%clk 0:00:03]}  Rf8 {[%clk 0:00:04]} 70. Ra6 {[%clk 0:00:03]}  Rd5 {[%clk 0:00:04]} 71. Kg6 {[%clk 0:00:02]}  Rd7 {[%clk 0:00:03]} 72. Kh5 {[%clk 0:00:02]}  Re7 {[%clk 0:00:03]} 73. Kg6 {[%clk 0:00:02]}  Ree8 {[%clk 0:00:04]} 74. h5 {[%clk 0:00:02]}  Rf6+ {[%clk 0:00:04]} 75. Rxf6 {[%clk 0:00:01]}  gxf6 {[%clk 0:00:04]} 76. Kxf6 {[%clk 0:00:02]}  Rf8+ {[%clk 0:00:05]} 77. Kg6 {[%clk 0:00:03]}  Ra8 {[%clk 0:00:04]} 78. Ne6 {[%clk 0:00:03]}  Ra6 {[%clk 0:00:04]} 79. Kf6 {[%clk 0:00:03]}  Ra1 {[%clk 0:00:03]} 80. g5 {[%clk 0:00:03]}  Rf1+ {[%clk 0:00:03]} 81. Kg6 {[%clk 0:00:04]}  Re1 {[%clk 0:00:03]} 82. Nf4 {[%clk 0:00:04]}  Rf1 {[%clk 0:00:03]} 83. Nd5 {[%clk 0:00:04]}  Rd1 {[%clk 0:00:03]} 84. Nf6+ {[%clk 0:00:05]}  Kh8 {[%clk 0:00:04]} 85. Kf7 {[%clk 0:00:02]}  Rd8 {[%clk 0:00:03]} 86. h6 {[%clk 0:00:02]}  Rf8+ {[%clk 0:00:02]} 87. Kg6 {[%clk 0:00:02]}  Rd8 {[%clk 0:00:02]} 88. Kh5 {[%clk 0:00:02]}  Rd6 {[%clk 0:00:02]} 89. Kg4 {[%clk 0:00:02]}  Rd4+ {[%clk 0:00:02]} 90. Kf5 {[%clk 0:00:02]}  Ra4 {[%clk 0:00:01]} 91. g6 {[%clk 0:00:02]}  Ra7 {[%clk 0:00:02]} 92. Kg5 {[%clk 0:00:02]}  Ra5+ {[%clk 0:00:02]} 93. Kf4 {[%clk 0:00:02]}  Ra6 {[%clk 0:00:03]} 94. Ke5 {[%clk 0:00:01]}  Ra5+ {[%clk 0:00:03]} 95. Nd5 {[%clk 0:00:01]}  Ra7 {[%clk 0:00:04]} 96. Kf6 {[%clk 0:00:01]}  Kg8 {[%clk 0:00:04]} 97. Ne7+ {[%clk 0:00:01]}  Kf8 {[%clk 0:00:04]} 98. g7+ {[%clk 0:00:01]}  Ke8 {[%clk 0:00:04]} 99. g8=Q+ {[%clk 0:00:02]}  Kd7 {[%clk 0:00:05]} 100. Qe6+ {[%clk 0:00:03]}  Ke8 {[%clk 0:00:05]} 101. Nd5+ {[%clk 0:00:03]}  Kf8 {[%clk 0:00:06]} 102. Qc8# {[%clk 0:00:03]} 1-0


[Site "https://www.chess.com"]

[Event "Titled Tuesday Blitz June 27 Early 2023"]
[White "Lehtosaari, Mauri"]
[Black "Wang, Alexander J"]
[WhiteFideId "501999"]
[BlackFideId "30955270"]
[WhiteElo "2483"]
[BlackElo "2313"]
[Result "1-0"]
[Round "9"]
[TimeControl "180+2"]
[Date "2023.06.27"]
[WhiteClock "0:00:46"]
[BlackClock "0:00:00"]
[Board "122"]

1. d4 {[%clk 0:03:00]}  d5 {[%clk 0:02:57]} 2. f4 {[%clk 0:02:58]}  Nf6 {[%clk 0:02:55]} 3. Nf3 {[%clk 0:02:56]}  e6 {[%clk 0:02:48]} 4. Be3 {[%clk 0:02:55]}  Nbd7 {[%clk 0:02:41]} 5. Nbd2 {[%clk 0:02:53]}  b6 {[%clk 0:02:40]} 6. Bf2 {[%clk 0:02:52]}  Bb7 {[%clk 0:02:30]} 7. Bh4 {[%clk 0:02:46]}  Bd6 {[%clk 0:02:29]} 8. e3 {[%clk 0:02:45]}  c5 {[%clk 0:02:26]} 9. g3 {[%clk 0:02:35]}  h6 {[%clk 0:02:17]} 10. c3 {[%clk 0:02:09]}  Rg8 {[%clk 0:02:06]} 11. Bxf6 {[%clk 0:02:05]}  Nxf6 {[%clk 0:02:06]} 12. Bb5+ {[%clk 0:02:04]}  Ke7 {[%clk 0:01:59]} 13. Ne5 {[%clk 0:02:02]}  Qc7 {[%clk 0:01:52]} 14. Qe2 {[%clk 0:01:52]}  a6 {[%clk 0:01:44]} 15. Ba4 {[%clk 0:01:50]}  b5 {[%clk 0:01:41]} 16. Bc2 {[%clk 0:01:47]}  c4 {[%clk 0:01:40]} 17. e4 {[%clk 0:01:40]}  Nd7 {[%clk 0:01:01]} 18. exd5 {[%clk 0:01:35]}  Bxd5 {[%clk 0:01:00]} 19. Be4 {[%clk 0:01:31]}  Nb6 {[%clk 0:00:54]} 20. O-O {[%clk 0:01:22]}  Bxe5 {[%clk 0:00:51]} 21. fxe5 {[%clk 0:01:19]}  Qc6 {[%clk 0:00:41]} 22. Rae1 {[%clk 0:01:12]}  Rgf8 {[%clk 0:00:40]} 23. Qg4 {[%clk 0:01:10]}  g5 {[%clk 0:00:27]} 24. Qh5 {[%clk 0:01:07]}  Bxe4 {[%clk 0:00:22]} 25. Nxe4 {[%clk 0:01:06]}  Nd5 {[%clk 0:00:23]} 26. Nd6 {[%clk 0:00:59]}  Nf4 {[%clk 0:00:19]} 27. gxf4 {[%clk 0:00:56]}  gxf4 {[%clk 0:00:20]} 28. Qh4+ {[%clk 0:00:52]}  Kd7 {[%clk 0:00:19]} 29. Kf2 {[%clk 0:00:50]}  Rg8 {[%clk 0:00:18]} 30. Rg1 {[%clk 0:00:50]}  Qd5 {[%clk 0:00:00]} 31. Qxf4 {[%clk 0:00:46]} 1-0


[Site "https://www.chess.com"]

[Event "Titled Tuesday Blitz June 27 Early 2023"]
[White "Barbot, Pierre"]
[Black "Sariego Figueredo, Wilfredo"]
[WhiteFideId "663727"]
[BlackFideId "3500080"]
[WhiteElo "2377"]
[BlackElo "2214"]
[Result "1-0"]
[Round "9"]
[TimeControl "180+2"]
[Date "2023.06.27"]
[WhiteClock "0:00:44"]
[BlackClock "0:00:38"]
[Board "128"]

1. d4 {[%clk 0:03:00]}  d5 {[%clk 0:02:59]} 2. Nf3 {[%clk 0:03:01]}  Nf6 {[%clk 0:02:59]} 3. Bf4 {[%clk 0:03:01]}  e6 {[%clk 0:02:59]} 4. e3 {[%clk 0:02:59]}  Bd6 {[%clk 0:03:00]} 5. Nbd2 {[%clk 0:02:57]}  O-O {[%clk 0:02:59]} 6. Bd3 {[%clk 0:02:55]}  c5 {[%clk 0:02:59]} 7. c3 {[%clk 0:02:54]}  Qc7 {[%clk 0:02:59]} 8. Bg5 {[%clk 0:02:10]}  Nbd7 {[%clk 0:02:50]} 9. O-O {[%clk 0:02:07]}  c4 {[%clk 0:02:39]} 10. Bc2 {[%clk 0:01:58]}  e5 {[%clk 0:02:38]} 11. e4 {[%clk 0:01:52]}  exd4 {[%clk 0:02:28]} 12. cxd4 {[%clk 0:01:41]}  dxe4 {[%clk 0:02:11]} 13. Nxe4 {[%clk 0:01:40]}  Nxe4 {[%clk 0:02:08]} 14. Bxe4 {[%clk 0:01:41]}  h6 {[%clk 0:02:07]} 15. Bh4 {[%clk 0:01:40]}  Rb8 {[%clk 0:02:04]} 16. Rc1 {[%clk 0:01:30]}  b5 {[%clk 0:02:03]} 17. Re1 {[%clk 0:01:24]}  Bb7 {[%clk 0:01:58]} 18. d5 {[%clk 0:01:22]}  Nc5 {[%clk 0:01:56]} 19. Bf5 {[%clk 0:01:13]}  Rfe8 {[%clk 0:01:45]} 20. Qd4 {[%clk 0:01:10]}  g6 {[%clk 0:01:12]} 21. Bb1 {[%clk 0:01:05]}  Bf4 {[%clk 0:01:09]} 22. Rcd1 {[%clk 0:00:53]}  Qd6 {[%clk 0:01:09]} 23. Bf6 {[%clk 0:00:47]}  Rxe1+ {[%clk 0:01:00]} 24. Rxe1 {[%clk 0:00:46]}  Qxd5 {[%clk 0:00:38]} 25. Qxf4 {[%clk 0:00:44]} 1-0


[Site "https://www.chess.com"]

[Event "Titled Tuesday Blitz June 27 Early 2023"]
[White "campochess"]
[Black "Sovetbekova, Nurai"]
[BlackFideId "13801910"]
[WhiteElo "2172"]
[BlackElo "2349"]
[Result "0-1"]
[Round "9"]
[TimeControl "180+2"]
[Date "2023.06.27"]
[WhiteClock "0:00:23"]
[BlackClock "0:00:15"]
[Board "129"]

1. Nc3 {[%clk 0:02:58]}  d5 {[%clk 0:02:58]} 2. d4 {[%clk 0:02:58]}  Nf6 {[%clk 0:02:57]} 3. Bf4 {[%clk 0:02:57]}  Bf5 {[%clk 0:02:40]} 4. e3 {[%clk 0:02:56]}  e6 {[%clk 0:02:39]} 5. h3 {[%clk 0:02:56]}  c5 {[%clk 0:02:35]} 6. Nf3 {[%clk 0:02:51]}  Nc6 {[%clk 0:02:34]} 7. Be2 {[%clk 0:02:39]}  Be7 {[%clk 0:02:33]} 8. O-O {[%clk 0:02:37]}  O-O {[%clk 0:02:32]} 9. a3 {[%clk 0:02:32]}  Rc8 {[%clk 0:02:27]} 10. Ne5 {[%clk 0:02:29]}  Ne4 {[%clk 0:02:17]} 11. Nxc6 {[%clk 0:02:23]}  Rxc6 {[%clk 0:02:10]} 12. Nxe4 {[%clk 0:02:23]}  Bxe4 {[%clk 0:02:09]} 13. Bd3 {[%clk 0:02:17]}  Bxd3 {[%clk 0:01:55]} 14. Qxd3 {[%clk 0:02:16]}  cxd4 {[%clk 0:01:55]} 15. exd4 {[%clk 0:02:14]}  Qb6 {[%clk 0:01:52]} 16. Rab1 {[%clk 0:02:05]}  Bf6 {[%clk 0:01:46]} 17. c3 {[%clk 0:02:04]}  Qb3 {[%clk 0:01:45]} 18. Qd1 {[%clk 0:02:02]}  Qb6 {[%clk 0:01:31]} 19. Re1 {[%clk 0:01:59]}  Rfc8 {[%clk 0:01:10]} 20. Qf3 {[%clk 0:01:56]}  Qb3 {[%clk 0:01:05]} 21. Qd1 {[%clk 0:01:52]}  Qc4 {[%clk 0:00:59]} 22. Qe2 {[%clk 0:01:47]}  b5 {[%clk 0:00:58]} 23. Qxc4 {[%clk 0:01:44]}  bxc4 {[%clk 0:00:57]} 24. Rbc1 {[%clk 0:01:34]}  Rb6 {[%clk 0:00:55]} 25. Rc2 {[%clk 0:01:34]}  Rb3 {[%clk 0:00:51]} 26. Ree2 {[%clk 0:01:34]}  h6 {[%clk 0:00:49]} 27. g4 {[%clk 0:01:31]}  Kf8 {[%clk 0:00:40]} 28. Kg2 {[%clk 0:01:28]}  Ke7 {[%clk 0:00:40]} 29. Bg3 {[%clk 0:01:21]}  h5 {[%clk 0:00:35]} 30. f4 {[%clk 0:01:20]}  hxg4 {[%clk 0:00:30]} 31. hxg4 {[%clk 0:01:19]}  g6 {[%clk 0:00:30]} 32. f5 {[%clk 0:01:10]}  gxf5 {[%clk 0:00:29]} 33. gxf5 {[%clk 0:01:10]}  Rg8 {[%clk 0:00:29]} 34. Kf3 {[%clk 0:01:10]}  Bxd4 {[%clk 0:00:27]} 35. fxe6 {[%clk 0:01:02]}  fxe6 {[%clk 0:00:26]} 36. Rcd2 {[%clk 0:00:58]}  Bxc3 {[%clk 0:00:17]} 37. Rxd5 {[%clk 0:00:51]}  Bf6+ {[%clk 0:00:15]} 38. Kf2 {[%clk 0:00:47]}  Rgxg3 {[%clk 0:00:14]} 39. Ra5 {[%clk 0:00:46]}  Rbf3+ {[%clk 0:00:14]} 40. Ke1 {[%clk 0:00:45]}  Rg1+ {[%clk 0:00:15]} 41. Kd2 {[%clk 0:00:45]}  Rd3+ {[%clk 0:00:15]} 42. Kc2 {[%clk 0:00:44]}  Rd7 {[%clk 0:00:15]} 43. Ra6 {[%clk 0:00:43]}  e5 {[%clk 0:00:15]} 44. Rf2 {[%clk 0:00:42]}  Rg6 {[%clk 0:00:15]} 45. Rh2 {[%clk 0:00:41]}  Rb7 {[%clk 0:00:14]} 46. Rh7+ {[%clk 0:00:40]}  Rg7 {[%clk 0:00:15]} 47. Rh6 {[%clk 0:00:39]}  Rg2+ {[%clk 0:00:14]} 48. Kd1 {[%clk 0:00:37]}  Rbxb2 {[%clk 0:00:14]} 49. Rxa7+ {[%clk 0:00:31]}  Ke6 {[%clk 0:00:14]} 50. Ra6+ {[%clk 0:00:31]}  Kd5 {[%clk 0:00:15]} 51. Kc1 {[%clk 0:00:25]}  Bg5+ {[%clk 0:00:15]} 52. Kd1 {[%clk 0:00:23]}  Rb1# {[%clk 0:00:15]} 0-1


[Site "https://www.chess.com"]

[Event "Titled Tuesday Blitz June 27 Early 2023"]
[White "Semenova, Alina"]
[Black "Ernst, Sipke"]
[WhiteFideId "24113875"]
[BlackFideId "1004689"]
[WhiteElo "2068"]
[BlackElo "2642"]
[Result "0-1"]
[Round "9"]
[TimeControl "180+2"]
[Date "2023.06.27"]
[WhiteClock "0:00:12"]
[BlackClock "0:01:45"]
[Board "132"]

1. e4 {[%clk 0:01:49]}  e5 {[%clk 0:02:58]} 2. Nf3 {[%clk 0:01:49]}  Nc6 {[%clk 0:02:58]} 3. c3 {[%clk 0:01:49]}  d5 {[%clk 0:02:56]} 4. Qa4 {[%clk 0:01:49]}  Bd7 {[%clk 0:02:55]} 5. exd5 {[%clk 0:01:49]}  Nd4 {[%clk 0:02:56]} 6. Qd1 {[%clk 0:01:49]}  Nxf3+ {[%clk 0:02:56]} 7. Qxf3 {[%clk 0:01:50]}  Bd6 {[%clk 0:02:57]} 8. Bc4 {[%clk 0:01:47]}  f5 {[%clk 0:02:56]} 9. d3 {[%clk 0:01:46]}  Nf6 {[%clk 0:02:56]} 10. O-O {[%clk 0:01:45]}  O-O {[%clk 0:02:56]} 11. Bg5 {[%clk 0:01:43]}  Qe8 {[%clk 0:02:55]} 12. Re1 {[%clk 0:01:42]}  Qg6 {[%clk 0:02:55]} 13. Bxf6 {[%clk 0:01:39]}  Rxf6 {[%clk 0:02:55]} 14. a4 {[%clk 0:01:38]}  f4 {[%clk 0:02:49]} 15. h3 {[%clk 0:01:31]}  Qh6 {[%clk 0:02:46]} 16. Nd2 {[%clk 0:01:30]}  g5 {[%clk 0:02:45]} 17. Ne4 {[%clk 0:01:30]}  Rg6 {[%clk 0:02:45]} 18. Nxd6 {[%clk 0:01:29]}  cxd6 {[%clk 0:02:44]} 19. Rxe5 {[%clk 0:01:08]}  dxe5 {[%clk 0:02:40]} 20. d6+ {[%clk 0:01:08]}  Be6 {[%clk 0:02:36]} 21. Qxb7 {[%clk 0:01:08]}  Rf8 {[%clk 0:02:36]} 22. Bxe6+ {[%clk 0:01:07]}  Rxe6 {[%clk 0:02:36]} 23. d7 {[%clk 0:01:07]}  Rd6 {[%clk 0:02:32]} 24. Qxa7 {[%clk 0:01:05]}  Qe6 {[%clk 0:02:25]} 25. Re1 {[%clk 0:01:03]}  Qxd7 {[%clk 0:02:20]} 26. Qc5 {[%clk 0:00:57]}  Rd5 {[%clk 0:02:19]} 27. Qc4 {[%clk 0:00:57]}  Kg7 {[%clk 0:02:17]} 28. d4 {[%clk 0:00:44]}  exd4 {[%clk 0:02:13]} 29. cxd4 {[%clk 0:00:37]}  Rc8 {[%clk 0:02:05]} 30. Re7+ {[%clk 0:00:33]}  Qxe7 {[%clk 0:02:05]} 31. Qxd5 {[%clk 0:00:33]}  Rc1+ {[%clk 0:02:02]} 32. Kh2 {[%clk 0:00:32]}  Re1 {[%clk 0:01:58]} 33. a5 {[%clk 0:00:30]}  g4 {[%clk 0:01:50]} 34. a6 {[%clk 0:00:24]}  g3+ {[%clk 0:01:46]} 35. fxg3 {[%clk 0:00:20]}  fxg3+ {[%clk 0:01:46]} 36. Kxg3 {[%clk 0:00:21]}  Qe3+ {[%clk 0:01:46]} 37. Kh2 {[%clk 0:00:17]}  Qf4+ {[%clk 0:01:45]} 38. g3 {[%clk 0:00:15]}  Qd2+ {[%clk 0:01:45]} 39. Qg2 {[%clk 0:00:12]}  Re2 {[%clk 0:01:45]} 0-1


[Site "https://www.chess.com"]

[Event "Titled Tuesday Blitz June 27 Early 2023"]
[White "Larina, Maria"]
[Black "BenchGM"]
[WhiteFideId "24113182"]
[WhiteElo "2193"]
[BlackElo "2384"]
[Result "1-0"]
[Round "9"]
[TimeControl "180+2"]
[Date "2023.06.27"]
[WhiteClock "0:00:06"]
[BlackClock "0:00:00"]
[Board "134"]

1. e4 {[%clk 0:03:00]}  e6 {[%clk 0:02:58]} 2. d4 {[%clk 0:02:59]}  d5 {[%clk 0:02:59]} 3. Nc3 {[%clk 0:02:59]}  Nf6 {[%clk 0:02:58]} 4. Bg5 {[%clk 0:02:59]}  dxe4 {[%clk 0:02:57]} 5. Nxe4 {[%clk 0:02:59]}  Be7 {[%clk 0:02:58]} 6. Nxf6+ {[%clk 0:02:54]}  Bxf6 {[%clk 0:02:57]} 7. Bxf6 {[%clk 0:02:54]}  Qxf6 {[%clk 0:02:58]} 8. Nf3 {[%clk 0:02:54]}  O-O {[%clk 0:02:58]} 9. Bd3 {[%clk 0:02:36]}  c5 {[%clk 0:02:56]} 10. Qd2 {[%clk 0:02:21]}  Nc6 {[%clk 0:02:36]} 11. c3 {[%clk 0:02:09]}  cxd4 {[%clk 0:02:34]} 12. cxd4 {[%clk 0:02:02]}  Rd8 {[%clk 0:02:22]} 13. O-O-O {[%clk 0:01:47]}  a5 {[%clk 0:01:57]} 14. Be4 {[%clk 0:01:26]}  Bd7 {[%clk 0:01:49]} 15. Kb1 {[%clk 0:01:22]}  a4 {[%clk 0:01:39]} 16. h4 {[%clk 0:01:00]}  a3 {[%clk 0:01:30]} 17. b3 {[%clk 0:00:59]}  h6 {[%clk 0:01:05]} 18. g4 {[%clk 0:00:52]}  Qe7 {[%clk 0:00:53]} 19. g5 {[%clk 0:00:50]}  Nb4 {[%clk 0:00:37]} 20. gxh6 {[%clk 0:00:45]}  f5 {[%clk 0:00:23]} 21. Rhg1 {[%clk 0:00:34]}  fxe4 {[%clk 0:00:17]} 22. Rxg7+ {[%clk 0:00:33]}  Qxg7 {[%clk 0:00:18]} 23. hxg7 {[%clk 0:00:34]}  exf3 {[%clk 0:00:17]} 24. Qxb4 {[%clk 0:00:33]}  e5 {[%clk 0:00:14]} 25. Qc4+ {[%clk 0:00:26]}  Kh7 {[%clk 0:00:14]} 26. Qd3+ {[%clk 0:00:24]}  Kg8 {[%clk 0:00:13]} 27. Qg6 {[%clk 0:00:20]}  exd4 {[%clk 0:00:06]} 28. Rxd4 {[%clk 0:00:18]}  Bc6 {[%clk 0:00:04]} 29. Qe6+ {[%clk 0:00:14]}  Kh7 {[%clk 0:00:03]} 30. Qf5+ {[%clk 0:00:13]}  Kg8 {[%clk 0:00:03]} 31. Rd3 {[%clk 0:00:10]}  Re8 {[%clk 0:00:02]} 32. Re3 {[%clk 0:00:08]}  Red8 {[%clk 0:00:00]} 33. Kc2 {[%clk 0:00:06]} 1-0


[Site "https://www.chess.com"]

[Event "Titled Tuesday Blitz June 27 Early 2023"]
[White "Winkels, Marcel"]
[Black "Georg, Heinz"]
[WhiteFideId "1003887"]
[BlackFideId "4607295"]
[WhiteElo "2114"]
[BlackElo "2266"]
[Result "0-1"]
[Round "9"]
[TimeControl "180+2"]
[Date "2023.06.27"]
[WhiteClock "0:00:00"]
[BlackClock "0:01:32"]
[Board "138"]

1. e4 {[%clk 0:03:00]}  e5 {[%clk 0:02:59]} 2. Nf3 {[%clk 0:03:00]}  Nc6 {[%clk 0:02:59]} 3. d4 {[%clk 0:02:56]}  exd4 {[%clk 0:02:59]} 4. Nxd4 {[%clk 0:02:57]}  Nf6 {[%clk 0:02:59]} 5. Nxc6 {[%clk 0:02:56]}  bxc6 {[%clk 0:03:00]} 6. e5 {[%clk 0:02:49]}  Qe7 {[%clk 0:03:00]} 7. Qe2 {[%clk 0:02:49]}  Nd5 {[%clk 0:03:00]} 8. c4 {[%clk 0:02:49]}  Ba6 {[%clk 0:03:00]} 9. b3 {[%clk 0:02:49]}  g6 {[%clk 0:03:00]} 10. Bb2 {[%clk 0:02:48]}  Bg7 {[%clk 0:02:59]} 11. Nd2 {[%clk 0:02:46]}  O-O {[%clk 0:02:57]} 12. Nf3 {[%clk 0:02:45]}  Rfe8 {[%clk 0:02:55]} 13. g3 {[%clk 0:02:45]}  f6 {[%clk 0:02:47]} 14. exf6 {[%clk 0:02:28]}  Qxe2+ {[%clk 0:02:31]} 15. Bxe2 {[%clk 0:02:28]}  Nxf6 {[%clk 0:02:31]} 16. Kd2 {[%clk 0:02:13]}  d5 {[%clk 0:02:28]} 17. Rhe1 {[%clk 0:01:51]}  Ne4+ {[%clk 0:02:27]} 18. Kc2 {[%clk 0:01:42]}  Nxf2 {[%clk 0:02:16]} 19. Bxg7 {[%clk 0:01:40]}  Kxg7 {[%clk 0:02:16]} 20. Nd4 {[%clk 0:01:26]}  c5 {[%clk 0:02:09]} 21. Nf3 {[%clk 0:01:09]}  d4 {[%clk 0:02:03]} 22. Bd3 {[%clk 0:00:54]}  Bb7 {[%clk 0:01:59]} 23. Ne5 {[%clk 0:00:54]}  Re7 {[%clk 0:01:49]} 24. Bf1 {[%clk 0:00:42]}  Rae8 {[%clk 0:01:44]} 25. Re2 {[%clk 0:00:28]}  d3+ {[%clk 0:01:40]} 26. Kd2 {[%clk 0:00:07]}  dxe2 {[%clk 0:01:39]} 27. Bxe2 {[%clk 0:00:06]}  Rxe5 {[%clk 0:01:38]} 28. Bf1 {[%clk 0:00:06]}  Rd8+ {[%clk 0:01:37]} 29. Kc2 {[%clk 0:00:05]}  Be4+ {[%clk 0:01:35]} 30. Kb2 {[%clk 0:00:04]}  Rd2+ {[%clk 0:01:33]} 31. Ka3 {[%clk 0:00:00]}  Re6 {[%clk 0:01:32]} 0-1


[Site "https://www.chess.com"]

[Event "Titled Tuesday Blitz June 27 Early 2023"]
[White "Skiadopoulos, Nikolaos"]
[Black "deloewre"]
[WhiteFideId "4200772"]
[WhiteElo "1923"]
[BlackElo "2131"]
[Result "1/2-1/2"]
[Round "9"]
[TimeControl "180+2"]
[Date "2023.06.27"]
[WhiteClock "0:00:04"]
[BlackClock "0:00:10"]
[Board "139"]

1. e4 {[%clk 0:02:07]}  c5 {[%clk 0:02:55]} 2. b4 {[%clk 0:02:07]}  cxb4 {[%clk 0:02:54]} 3. a3 {[%clk 0:02:07]}  d5 {[%clk 0:02:51]} 4. exd5 {[%clk 0:02:05]}  Qxd5 {[%clk 0:02:49]} 5. Nf3 {[%clk 0:02:06]}  e5 {[%clk 0:02:44]} 6. c4 {[%clk 0:02:04]}  Qd6 {[%clk 0:02:22]} 7. Bb2 {[%clk 0:01:54]}  Nc6 {[%clk 0:02:20]} 8. axb4 {[%clk 0:01:50]}  Qxb4 {[%clk 0:02:16]} 9. Bxe5 {[%clk 0:01:38]}  Nxe5 {[%clk 0:02:16]} 10. Nxe5 {[%clk 0:01:38]}  Qe7 {[%clk 0:02:06]} 11. Qe2 {[%clk 0:01:33]}  f6 {[%clk 0:02:01]} 12. Nf3 {[%clk 0:01:31]}  Qxe2+ {[%clk 0:01:59]} 13. Bxe2 {[%clk 0:01:30]}  Bb4 {[%clk 0:01:54]} 14. O-O {[%clk 0:01:17]}  Ne7 {[%clk 0:01:53]} 15. d4 {[%clk 0:01:17]}  O-O {[%clk 0:01:51]} 16. Nbd2 {[%clk 0:00:59]}  Bg4 {[%clk 0:01:48]} 17. h3 {[%clk 0:00:59]}  Bh5 {[%clk 0:01:41]} 18. g4 {[%clk 0:00:58]}  Bf7 {[%clk 0:01:37]} 19. Ne4 {[%clk 0:00:55]}  Nc6 {[%clk 0:01:31]} 20. d5 {[%clk 0:00:52]}  Ne5 {[%clk 0:01:22]} 21. Nxe5 {[%clk 0:00:47]}  fxe5 {[%clk 0:01:22]} 22. Ng5 {[%clk 0:00:44]}  h6 {[%clk 0:01:18]} 23. Nxf7 {[%clk 0:00:43]}  Kxf7 {[%clk 0:01:17]} 24. f4 {[%clk 0:00:37]}  exf4 {[%clk 0:01:14]} 25. Rxf4+ {[%clk 0:00:37]}  Kg8 {[%clk 0:01:06]} 26. Raf1 {[%clk 0:00:32]}  Rxf4 {[%clk 0:01:03]} 27. Rxf4 {[%clk 0:00:31]}  Rf8 {[%clk 0:00:59]} 28. Rxf8+ {[%clk 0:00:26]}  Kxf8 {[%clk 0:00:58]} 29. Kf2 {[%clk 0:00:24]}  Ke7 {[%clk 0:00:58]} 30. Ke3 {[%clk 0:00:23]}  Kd6 {[%clk 0:00:57]} 31. Kd4 {[%clk 0:00:22]}  a5 {[%clk 0:00:53]} 32. Bd1 {[%clk 0:00:20]}  Bc5+ {[%clk 0:00:50]} 33. Kd3 {[%clk 0:00:20]}  Ke5 {[%clk 0:00:50]} 34. h4 {[%clk 0:00:17]}  Kf4 {[%clk 0:00:48]} 35. h5 {[%clk 0:00:17]}  b6 {[%clk 0:00:42]} 36. Kc3 {[%clk 0:00:14]}  Ke3 {[%clk 0:00:40]} 37. Ba4 {[%clk 0:00:12]}  Bb4+ {[%clk 0:00:36]} 38. Kb3 {[%clk 0:00:11]}  Kd2 {[%clk 0:00:33]} 39. Bd7 {[%clk 0:00:11]}  Kd3 {[%clk 0:00:31]} 40. Bf5+ {[%clk 0:00:09]}  Kd4 {[%clk 0:00:31]} 41. Be6 {[%clk 0:00:08]}  Kd3 {[%clk 0:00:29]} 42. Bf5+ {[%clk 0:00:07]}  Kd2 {[%clk 0:00:28]} 43. Ka4 {[%clk 0:00:05]}  Kc3 {[%clk 0:00:26]} 44. Be6 {[%clk 0:00:05]}  Kxc4 {[%clk 0:00:22]} 45. d6+ {[%clk 0:00:05]}  Kd4 {[%clk 0:00:19]} 46. d7 {[%clk 0:00:05]}  Be7 {[%clk 0:00:18]} 47. Kb5 {[%clk 0:00:05]}  Ke5 {[%clk 0:00:15]} 48. Bf5 {[%clk 0:00:04]}  Bd8 {[%clk 0:00:14]} 49. Ka4 {[%clk 0:00:03]}  Kd6 {[%clk 0:00:13]} 50. Kb5 {[%clk 0:00:03]}  Kc7 {[%clk 0:00:12]} 51. Be6 {[%clk 0:00:03]}  Be7 {[%clk 0:00:11]} 52. Bf5 {[%clk 0:00:03]}  Bd8 {[%clk 0:00:10]} 53. Be6 {[%clk 0:00:03]}  Be7 {[%clk 0:00:10]} 54. Bf5 {[%clk 0:00:04]}  Bd8 {[%clk 0:00:10]} 1/2-1/2


[Site "https://www.chess.com"]